[Event "Titled Tuesday Blitz February 14 Late 2023"]
[White "Petrovic, Aleksa"]
[Black "Ruiz Aguilar, Pablo Alexander"]
[WhiteFideId "967629"]
[BlackFideId "4401352"]
[WhiteElo "2332"]
[BlackElo "2161"]
[Result "0-1"]
[Round "05"]
[TimeControl "180+2"]
[Date "2023.02.14"]
[WhiteClock "0:00:12"]
[BlackClock "0:00:51"]

1. d4 {[%clk 0:02:57]}  d5 {[%clk 0:02:59]} 2. c4 {[%clk 0:02:57]}  c6 {[%clk 0:02:59]} 3. Nf3 {[%clk 0:02:56]}  Nf6 {[%clk 0:02:59]} 4. Nc3 {[%clk 0:02:56]}  e6 {[%clk 0:02:58]} 5. Bg5 {[%clk 0:02:52]}  Be7 {[%clk 0:02:59]} 6. e3 {[%clk 0:02:52]}  Nbd7 {[%clk 0:02:59]} 7. Qc2 {[%clk 0:02:51]}  O-O {[%clk 0:03:00]} 8. Rd1 {[%clk 0:02:51]}  a6 {[%clk 0:02:58]} 9. a3 {[%clk 0:02:49]}  b5 {[%clk 0:02:58]} 10. cxd5 {[%clk 0:02:39]}  cxd5 {[%clk 0:02:57]} 11. Bd3 {[%clk 0:02:38]}  Bb7 {[%clk 0:02:56]} 12. O-O {[%clk 0:02:37]}  Rc8 {[%clk 0:02:56]} 13. h3 {[%clk 0:02:33]}  h6 {[%clk 0:02:55]} 14. Bf4 {[%clk 0:02:30]}  b4 {[%clk 0:02:49]} 15. axb4 {[%clk 0:02:17]}  Bxb4 {[%clk 0:02:48]} 16. Qb3 {[%clk 0:02:15]}  a5 {[%clk 0:02:43]} 17. Na2 {[%clk 0:02:15]}  Qb6 {[%clk 0:02:37]} 18. Nxb4 {[%clk 0:02:12]}  axb4 {[%clk 0:02:38]} 19. Ne5 {[%clk 0:02:05]}  Nxe5 {[%clk 0:02:37]} 20. Bxe5 {[%clk 0:02:02]}  Ne4 {[%clk 0:02:35]} 21. f3 {[%clk 0:01:53]}  Nd6 {[%clk 0:02:35]} 22. Rc1 {[%clk 0:01:52]}  Nc4 {[%clk 0:02:29]} 23. Bb1 {[%clk 0:01:33]}  Nxe5 {[%clk 0:02:13]} 24. dxe5 {[%clk 0:01:34]}  g6 {[%clk 0:02:10]} 25. Kh2 {[%clk 0:01:14]}  Ba6 {[%clk 0:02:07]} 26. Rfd1 {[%clk 0:01:02]}  Bc4 {[%clk 0:02:04]} 27. Qc2 {[%clk 0:00:47]}  Qxe3 {[%clk 0:02:01]} 28. Re1 {[%clk 0:00:47]}  Qf4+ {[%clk 0:01:59]} 29. Kh1 {[%clk 0:00:47]}  Ba6 {[%clk 0:01:48]} 30. Qd1 {[%clk 0:00:40]}  Rxc1 {[%clk 0:01:41]} 31. Qxc1 {[%clk 0:00:41]}  Qxc1 {[%clk 0:01:41]} 32. Rxc1 {[%clk 0:00:42]}  Rc8 {[%clk 0:01:40]} 33. Rxc8+ {[%clk 0:00:41]}  Bxc8 {[%clk 0:01:40]} 34. Kg1 {[%clk 0:00:41]}  Kf8 {[%clk 0:01:36]} 35. Kf2 {[%clk 0:00:41]}  Ke7 {[%clk 0:01:36]} 36. Ke3 {[%clk 0:00:41]}  Kd7 {[%clk 0:01:35]} 37. Kd4 {[%clk 0:00:38]}  Kc6 {[%clk 0:01:35]} 38. Bc2 {[%clk 0:00:37]}  Ba6 {[%clk 0:01:35]} 39. Ba4+ {[%clk 0:00:35]}  Bb5 {[%clk 0:01:34]} 40. Bc2 {[%clk 0:00:36]}  Kb6 {[%clk 0:01:29]} 41. g4 {[%clk 0:00:27]}  g5 {[%clk 0:01:24]} 42. Bd3 {[%clk 0:00:16]}  Bxd3 {[%clk 0:01:20]} 43. Kxd3 {[%clk 0:00:17]}  Kc5 {[%clk 0:01:20]} 44. b3 {[%clk 0:00:17]}  d4 {[%clk 0:01:09]} 45. Ke4 {[%clk 0:00:17]}  d3 {[%clk 0:01:09]} 46. Ke3 {[%clk 0:00:13]}  d2 {[%clk 0:00:59]} 47. Kxd2 {[%clk 0:00:12]}  Kd4 {[%clk 0:01:00]} 48. Ke2 {[%clk 0:00:12]}  Kc3 {[%clk 0:00:51]} 0-1


[Site "https://www.chess.com"]

[Event "Titled Tuesday Blitz February 14 Late 2023"]
[White "Tworuszka, Michal"]
[Black "Lopez Perdomo, Juan David"]
[WhiteFideId "1117858"]
[BlackFideId "4405137"]
[WhiteElo "2260"]
[BlackElo "2029"]
[Result "0-1"]
[Round "05"]
[TimeControl "180+2"]
[Date "2023.02.14"]
[WhiteClock "0:00:01"]
[BlackClock "0:00:03"]

1. e4 {[%clk 0:02:53]}  e6 {[%clk 0:03:00]} 2. d4 {[%clk 0:02:48]}  d5 {[%clk 0:03:00]} 3. Nd2 {[%clk 0:02:48]}  Nf6 {[%clk 0:03:00]} 4. e5 {[%clk 0:02:47]}  Nfd7 {[%clk 0:03:00]} 5. Bd3 {[%clk 0:02:48]}  c5 {[%clk 0:03:01]} 6. c3 {[%clk 0:02:49]}  Nc6 {[%clk 0:03:01]} 7. Ne2 {[%clk 0:02:49]}  f6 {[%clk 0:03:01]} 8. exf6 {[%clk 0:02:48]}  Nxf6 {[%clk 0:03:02]} 9. O-O {[%clk 0:02:48]}  Bd6 {[%clk 0:03:02]} 10. Nf3 {[%clk 0:02:48]}  O-O {[%clk 0:03:02]} 11. Bg5 {[%clk 0:02:48]}  e5 {[%clk 0:03:00]} 12. dxe5 {[%clk 0:02:38]}  Nxe5 {[%clk 0:03:01]} 13. Nxe5 {[%clk 0:02:38]}  Bxe5 {[%clk 0:03:02]} 14. Ng3 {[%clk 0:02:37]}  h6 {[%clk 0:02:55]} 15. Bxf6 {[%clk 0:02:31]}  Qxf6 {[%clk 0:02:56]} 16. Qh5 {[%clk 0:02:10]}  d4 {[%clk 0:02:12]} 17. Rae1 {[%clk 0:01:59]}  g5 {[%clk 0:01:40]} 18. Rxe5 {[%clk 0:01:52]}  Qxe5 {[%clk 0:01:39]} 19. Qg6+ {[%clk 0:01:52]}  Qg7 {[%clk 0:01:39]} 20. Bc4+ {[%clk 0:01:44]}  Kh8 {[%clk 0:01:39]} 21. Qd6 {[%clk 0:01:39]}  Bg4 {[%clk 0:01:14]} 22. h3 {[%clk 0:01:33]}  Rad8 {[%clk 0:01:08]} 23. Qxc5 {[%clk 0:01:32]}  Rc8 {[%clk 0:01:08]} 24. Qb4 {[%clk 0:01:13]}  a5 {[%clk 0:01:07]} 25. Qb5 {[%clk 0:01:06]}  Bd7 {[%clk 0:01:07]} 26. Qd5 {[%clk 0:00:59]}  Be8 {[%clk 0:00:37]} 27. Bd3 {[%clk 0:00:46]}  Bf7 {[%clk 0:00:27]} 28. Qxb7 {[%clk 0:00:40]}  Bxa2 {[%clk 0:00:23]} 29. Qb6 {[%clk 0:00:25]}  dxc3 {[%clk 0:00:21]} 30. Nh5 {[%clk 0:00:18]}  Rb8 {[%clk 0:00:12]} 31. Qxa5 {[%clk 0:00:15]}  Qf7 {[%clk 0:00:07]} 32. Qe5+ {[%clk 0:00:13]}  Kg8 {[%clk 0:00:05]} 33. bxc3 {[%clk 0:00:09]}  Qxh5 {[%clk 0:00:04]} 34. c4 {[%clk 0:00:01]}  Qf7 {[%clk 0:00:03]} 0-1


[Site "https://www.chess.com"]

[Event "Titled Tuesday Blitz February 14 Late 2023"]
[White "Moral Garcia, Serafin"]
[Black "Fernandez Siles, Luis"]
[WhiteFideId "2201925"]
[BlackFideId "2209420"]
[WhiteElo "2238"]
[BlackElo "2218"]
[Result "1-0"]
[Round "05"]
[TimeControl "180+2"]
[Date "2023.02.14"]
[WhiteClock "0:00:20"]
[BlackClock "0:00:13"]

1. Nf3 {[%clk 0:02:42]}  f5 {[%clk 0:02:55]} 2. b3 {[%clk 0:02:41]}  Nf6 {[%clk 0:02:54]} 3. Bb2 {[%clk 0:02:42]}  g6 {[%clk 0:02:55]} 4. c4 {[%clk 0:02:42]}  Bg7 {[%clk 0:02:55]} 5. e3 {[%clk 0:02:42]}  O-O {[%clk 0:02:55]} 6. Be2 {[%clk 0:02:41]}  d6 {[%clk 0:02:55]} 7. d4 {[%clk 0:02:41]}  c6 {[%clk 0:02:38]} 8. O-O {[%clk 0:02:40]}  Qe8 {[%clk 0:02:36]} 9. Nc3 {[%clk 0:02:38]}  Na6 {[%clk 0:02:31]} 10. d5 {[%clk 0:02:29]}  Nc5 {[%clk 0:02:27]} 11. Nd4 {[%clk 0:02:20]}  Bd7 {[%clk 0:02:26]} 12. f4 {[%clk 0:02:13]}  e5 {[%clk 0:02:16]} 13. dxe6 {[%clk 0:02:11]}  Nxe6 {[%clk 0:02:16]} 14. Bf3 {[%clk 0:01:49]}  Nc5 {[%clk 0:02:07]} 15. Re1 {[%clk 0:01:45]}  Qe7 {[%clk 0:02:06]} 16. Qc2 {[%clk 0:01:44]}  a5 {[%clk 0:01:46]} 17. a3 {[%clk 0:01:38]}  Rae8 {[%clk 0:01:29]} 18. b4 {[%clk 0:01:35]}  axb4 {[%clk 0:01:26]} 19. axb4 {[%clk 0:01:33]}  Nce4 {[%clk 0:01:25]} 20. b5 {[%clk 0:01:31]}  Nxc3 {[%clk 0:01:14]} 21. Bxc3 {[%clk 0:01:29]}  Ne4 {[%clk 0:01:14]} 22. bxc6 {[%clk 0:01:21]}  bxc6 {[%clk 0:01:14]} 23. Bb2 {[%clk 0:01:13]}  Rb8 {[%clk 0:01:11]} 24. Ra7 {[%clk 0:01:08]}  Qe8 {[%clk 0:01:09]} 25. Bxe4 {[%clk 0:01:04]}  fxe4 {[%clk 0:01:03]} 26. Bc3 {[%clk 0:01:01]}  Rf7 {[%clk 0:00:32]} 27. Rea1 {[%clk 0:00:54]}  Be6 {[%clk 0:00:30]} 28. Nxe6 {[%clk 0:00:50]}  Qxe6 {[%clk 0:00:31]} 29. Bxg7 {[%clk 0:00:46]}  Kxg7 {[%clk 0:00:28]} 30. Qc3+ {[%clk 0:00:44]}  Kg8 {[%clk 0:00:25]} 31. h3 {[%clk 0:00:41]}  Rbf8 {[%clk 0:00:21]} 32. R1a6 {[%clk 0:00:36]}  Rxa7 {[%clk 0:00:21]} 33. Rxa7 {[%clk 0:00:36]}  Rf7 {[%clk 0:00:20]} 34. Ra8+ {[%clk 0:00:34]}  Rf8 {[%clk 0:00:21]} 35. Rxf8+ {[%clk 0:00:34]}  Kxf8 {[%clk 0:00:22]} 36. Qh8+ {[%clk 0:00:34]}  Qg8 {[%clk 0:00:20]} 37. Qf6+ {[%clk 0:00:33]}  Ke8 {[%clk 0:00:21]} 38. Qxd6 {[%clk 0:00:23]}  Qxc4 {[%clk 0:00:20]} 39. Qb8+ {[%clk 0:00:21]}  Kd7 {[%clk 0:00:20]} 40. Qb7+ {[%clk 0:00:21]}  Kd6 {[%clk 0:00:20]} 41. Qxh7 {[%clk 0:00:21]}  Qe2 {[%clk 0:00:20]} 42. Qxg6+ {[%clk 0:00:21]}  Kc5 {[%clk 0:00:20]} 43. Qxe4 {[%clk 0:00:20]}  Qe1+ {[%clk 0:00:16]} 44. Kh2 {[%clk 0:00:20]}  Kb5 {[%clk 0:00:16]} 45. f5 {[%clk 0:00:21]}  c5 {[%clk 0:00:17]} 46. f6 {[%clk 0:00:21]}  Qf1 {[%clk 0:00:13]} 47. Qf4 {[%clk 0:00:20]} 1-0


[Site "https://www.chess.com"]

[Event "Titled Tuesday Blitz February 14 Late 2023"]
[White "Toktomushev, Teimur"]
[Black "vjecspec"]
[WhiteFideId "14176726"]
[WhiteElo "2239"]
[BlackElo "2552"]
[Result "0-1"]
[Round "05"]
[TimeControl "180+2"]
[Date "2023.02.14"]
[WhiteClock "0:00:05"]
[BlackClock "0:01:00"]

1. d4 {[%clk 0:02:59]}  g6 {[%clk 0:02:59]} 2. c4 {[%clk 0:02:58]}  Nf6 {[%clk 0:02:59]} 3. Nc3 {[%clk 0:02:57]}  d5 {[%clk 0:02:59]} 4. cxd5 {[%clk 0:02:58]}  Nxd5 {[%clk 0:03:00]} 5. e4 {[%clk 0:02:58]}  Nxc3 {[%clk 0:03:00]} 6. bxc3 {[%clk 0:02:59]}  Bg7 {[%clk 0:03:00]} 7. Be3 {[%clk 0:02:59]}  c5 {[%clk 0:03:00]} 8. Qd2 {[%clk 0:02:59]}  Qa5 {[%clk 0:02:53]} 9. Nf3 {[%clk 0:02:54]}  Bg4 {[%clk 0:02:38]} 10. Rc1 {[%clk 0:02:44]}  O-O {[%clk 0:02:33]} 11. Be2 {[%clk 0:02:12]}  Rd8 {[%clk 0:02:32]} 12. d5 {[%clk 0:02:11]}  e6 {[%clk 0:02:31]} 13. c4 {[%clk 0:02:04]}  Qxd2+ {[%clk 0:02:25]} 14. Nxd2 {[%clk 0:02:05]}  Bxe2 {[%clk 0:02:23]} 15. Kxe2 {[%clk 0:02:06]}  Nd7 {[%clk 0:02:10]} 16. Rhd1 {[%clk 0:01:52]}  b6 {[%clk 0:02:09]} 17. f4 {[%clk 0:01:00]}  e5 {[%clk 0:01:28]} 18. g3 {[%clk 0:00:32]}  Re8 {[%clk 0:01:22]} 19. Kd3 {[%clk 0:00:14]}  f5 {[%clk 0:01:11]} 20. Re1 {[%clk 0:00:05]}  Rad8 {[%clk 0:01:00]} 0-1


[Site "https://www.chess.com"]

[Event "Titled Tuesday Blitz February 14 Late 2023"]
[White "Machidon, Cristi"]
[Black "Liu, Casper"]
[WhiteFideId "13904590"]
[BlackFideId "1454153"]
[WhiteElo "2301"]
[BlackElo "2278"]
[Result "1-0"]
[Round "05"]
[TimeControl "180+2"]
[Date "2023.02.14"]
[WhiteClock "0:00:34"]
[BlackClock "0:00:26"]

1. e4 {[%clk 0:02:58]}  c6 {[%clk 0:03:00]} 2. Nf3 {[%clk 0:02:53]}  d5 {[%clk 0:02:59]} 3. exd5 {[%clk 0:02:54]}  cxd5 {[%clk 0:03:00]} 4. Ne5 {[%clk 0:02:54]}  Nc6 {[%clk 0:02:57]} 5. Bb5 {[%clk 0:02:54]}  Bd7 {[%clk 0:02:56]} 6. Nxd7 {[%clk 0:02:52]}  Qxd7 {[%clk 0:02:57]} 7. d4 {[%clk 0:02:52]}  a6 {[%clk 0:02:53]} 8. Be2 {[%clk 0:02:42]}  Nf6 {[%clk 0:02:48]} 9. O-O {[%clk 0:02:42]}  e5 {[%clk 0:02:48]} 10. dxe5 {[%clk 0:02:41]}  Nxe5 {[%clk 0:02:48]} 11. Re1 {[%clk 0:02:37]}  Be7 {[%clk 0:02:44]} 12. Bxa6 {[%clk 0:02:30]}  Rxa6 {[%clk 0:02:32]} 13. Rxe5 {[%clk 0:02:29]}  O-O {[%clk 0:02:31]} 14. Re1 {[%clk 0:02:23]}  Re6 {[%clk 0:02:26]} 15. Be3 {[%clk 0:02:08]}  Ng4 {[%clk 0:02:16]} 16. Qxg4 {[%clk 0:02:01]}  Rxe3 {[%clk 0:02:16]} 17. Qd1 {[%clk 0:02:01]}  Rxe1+ {[%clk 0:02:15]} 18. Qxe1 {[%clk 0:02:02]}  Bf6 {[%clk 0:02:15]} 19. c3 {[%clk 0:02:00]}  Re8 {[%clk 0:02:15]} 20. Qd2 {[%clk 0:01:54]}  d4 {[%clk 0:01:32]} 21. Na3 {[%clk 0:01:51]}  d3 {[%clk 0:01:32]} 22. Re1 {[%clk 0:01:17]}  Bg5 {[%clk 0:01:19]} 23. Rxe8+ {[%clk 0:01:14]}  Qxe8 {[%clk 0:01:17]} 24. Qxd3 {[%clk 0:01:14]}  Qe1+ {[%clk 0:01:09]} 25. Qf1 {[%clk 0:01:14]}  Qc1 {[%clk 0:00:58]} 26. Qxc1 {[%clk 0:01:09]}  Bxc1 {[%clk 0:00:58]} 27. Nc4 {[%clk 0:01:08]}  b5 {[%clk 0:00:59]} 28. Nd6 {[%clk 0:01:09]}  Bxb2 {[%clk 0:00:47]} 29. Nxb5 {[%clk 0:01:08]}  Kf8 {[%clk 0:00:46]} 30. a4 {[%clk 0:01:08]}  Ke7 {[%clk 0:00:41]} 31. a5 {[%clk 0:01:09]}  Kd7 {[%clk 0:00:42]} 32. a6 {[%clk 0:01:09]}  Kc6 {[%clk 0:00:42]} 33. Kf1 {[%clk 0:01:00]}  Bc1 {[%clk 0:00:38]} 34. Ke2 {[%clk 0:00:56]}  Bg5 {[%clk 0:00:30]} 35. Kd3 {[%clk 0:00:53]}  Bd8 {[%clk 0:00:29]} 36. a7 {[%clk 0:00:51]}  Kb7 {[%clk 0:00:28]} 37. c4 {[%clk 0:00:46]}  Bb6 {[%clk 0:00:25]} 38. f3 {[%clk 0:00:46]}  Bxa7 {[%clk 0:00:25]} 39. Nxa7 {[%clk 0:00:45]}  Kxa7 {[%clk 0:00:26]} 40. Kd4 {[%clk 0:00:46]}  Kb7 {[%clk 0:00:27]} 41. Kd5 {[%clk 0:00:44]}  Kc7 {[%clk 0:00:27]} 42. Kc5 {[%clk 0:00:44]}  h5 {[%clk 0:00:22]} 43. h4 {[%clk 0:00:42]}  f6 {[%clk 0:00:22]} 44. Kd5 {[%clk 0:00:36]}  Kd7 {[%clk 0:00:20]} 45. c5 {[%clk 0:00:36]}  g5 {[%clk 0:00:20]} 46. g3 {[%clk 0:00:35]}  gxh4 {[%clk 0:00:19]} 47. gxh4 {[%clk 0:00:35]}  f5 {[%clk 0:00:18]} 48. Ke5 {[%clk 0:00:34]}  Kc6 {[%clk 0:00:19]} 49. Kxf5 {[%clk 0:00:35]}  Kxc5 {[%clk 0:00:20]} 50. Kg5 {[%clk 0:00:35]}  Kd6 {[%clk 0:00:21]} 51. Kxh5 {[%clk 0:00:36]}  Ke5 {[%clk 0:00:22]} 52. Kg5 {[%clk 0:00:35]}  Ke6 {[%clk 0:00:22]} 53. h5 {[%clk 0:00:34]}  Kf7 {[%clk 0:00:22]} 54. h6 {[%clk 0:00:34]}  Kg8 {[%clk 0:00:22]} 55. Kg6 {[%clk 0:00:34]}  Kh8 {[%clk 0:00:23]} 56. f4 {[%clk 0:00:34]}  Kg8 {[%clk 0:00:24]} 57. f5 {[%clk 0:00:35]}  Kh8 {[%clk 0:00:25]} 58. f6 {[%clk 0:00:35]}  Kg8 {[%clk 0:00:25]} 59. f7+ {[%clk 0:00:34]}  Kf8 {[%clk 0:00:26]} 60. h7 {[%clk 0:00:34]} 1-0


[Site "https://www.chess.com"]

[Event "Titled Tuesday Blitz February 14 Late 2023"]
[White "The_Sherman_Variation"]
[Black "Itkis, Boris"]
[BlackFideId "1209167"]
[WhiteElo "2511"]
[BlackElo "2329"]
[Result "1/2-1/2"]
[Round "05"]
[TimeControl "180+2"]
[Date "2023.02.14"]
[WhiteClock "0:00:20"]
[BlackClock "0:00:08"]

1. e4 {[%clk 0:03:00]}  e5 {[%clk 0:02:57]} 2. Nc3 {[%clk 0:02:59]}  Nf6 {[%clk 0:02:56]} 3. g3 {[%clk 0:02:59]}  c6 {[%clk 0:02:56]} 4. Bg2 {[%clk 0:02:59]}  d5 {[%clk 0:02:55]} 5. exd5 {[%clk 0:02:59]}  cxd5 {[%clk 0:02:56]} 6. d4 {[%clk 0:03:00]}  e4 {[%clk 0:02:53]} 7. Nge2 {[%clk 0:03:00]}  Nc6 {[%clk 0:02:52]} 8. O-O {[%clk 0:02:58]}  Bb4 {[%clk 0:02:48]} 9. f3 {[%clk 0:02:57]}  O-O {[%clk 0:02:29]} 10. Bg5 {[%clk 0:02:55]}  Be7 {[%clk 0:02:21]} 11. fxe4 {[%clk 0:02:45]}  Nxe4 {[%clk 0:02:11]} 12. Bxe7 {[%clk 0:02:38]}  Nxc3 {[%clk 0:02:02]} 13. Bxd8 {[%clk 0:02:17]}  Nxd1 {[%clk 0:02:00]} 14. Raxd1 {[%clk 0:02:18]}  Rxd8 {[%clk 0:01:59]} 15. Nf4 {[%clk 0:02:14]}  Be6 {[%clk 0:01:58]} 16. Nxe6 {[%clk 0:02:12]}  fxe6 {[%clk 0:01:57]} 17. Bh3 {[%clk 0:02:13]}  Rd6 {[%clk 0:01:57]} 18. c3 {[%clk 0:02:09]}  Re8 {[%clk 0:01:56]} 19. Rde1 {[%clk 0:02:08]}  e5 {[%clk 0:01:52]} 20. dxe5 {[%clk 0:02:02]}  Rxe5 {[%clk 0:01:53]} 21. Kg2 {[%clk 0:01:54]}  Rxe1 {[%clk 0:01:44]} 22. Rxe1 {[%clk 0:01:55]}  d4 {[%clk 0:01:45]} 23. Re6 {[%clk 0:01:30]}  dxc3 {[%clk 0:01:19]} 24. bxc3 {[%clk 0:01:04]}  Rd2+ {[%clk 0:01:19]} 25. Kf3 {[%clk 0:01:03]}  Rxh2 {[%clk 0:01:18]} 26. Bf5 {[%clk 0:01:02]}  g6 {[%clk 0:01:15]} 27. Be4 {[%clk 0:01:01]}  Kf7 {[%clk 0:00:48]} 28. Bd5 {[%clk 0:01:01]}  Rh5 {[%clk 0:00:28]} 29. Re5+ {[%clk 0:01:00]}  Kf6 {[%clk 0:00:23]} 30. Re6+ {[%clk 0:01:00]}  Kg7 {[%clk 0:00:22]} 31. Bxc6 {[%clk 0:00:58]}  bxc6 {[%clk 0:00:22]} 32. Rxc6 {[%clk 0:00:59]}  Ra5 {[%clk 0:00:22]} 33. g4 {[%clk 0:00:55]}  Kh6 {[%clk 0:00:20]} 34. Rc7 {[%clk 0:00:51]}  Rxa2 {[%clk 0:00:19]} 35. c4 {[%clk 0:00:51]}  Ra3+ {[%clk 0:00:17]} 36. Kf4 {[%clk 0:00:51]}  g5+ {[%clk 0:00:17]} 37. Ke4 {[%clk 0:00:51]}  Kg6 {[%clk 0:00:16]} 38. Rc6+ {[%clk 0:00:51]}  Kg7 {[%clk 0:00:16]} 39. Kf5 {[%clk 0:00:52]}  h6 {[%clk 0:00:15]} 40. Rc7+ {[%clk 0:00:52]}  Kf8 {[%clk 0:00:15]} 41. Kg6 {[%clk 0:00:52]}  Rg3 {[%clk 0:00:15]} 42. Kf6 {[%clk 0:00:34]}  Ke8 {[%clk 0:00:15]} 43. Rxa7 {[%clk 0:00:28]}  Rxg4 {[%clk 0:00:15]} 44. c5 {[%clk 0:00:28]}  Rc4 {[%clk 0:00:13]} 45. Re7+ {[%clk 0:00:25]}  Kd8 {[%clk 0:00:11]} 46. Re5 {[%clk 0:00:23]}  g4 {[%clk 0:00:11]} 47. Kg6 {[%clk 0:00:20]}  g3 {[%clk 0:00:11]} 48. Kxh6 {[%clk 0:00:20]}  g2 {[%clk 0:00:11]} 49. Rg5 {[%clk 0:00:19]}  Rxc5 {[%clk 0:00:07]} 50. Rxg2 {[%clk 0:00:19]}  Rc6+ {[%clk 0:00:08]} 51. Rg6 {[%clk 0:00:19]}  Rxg6+ {[%clk 0:00:08]} 52. Kxg6 {[%clk 0:00:20]} 1/2-1/2


[Site "https://www.chess.com"]

[Event "Titled Tuesday Blitz February 14 Late 2023"]
[White "Stachanczyk, Jacek"]
[Black "Sonnenschein, Philipp"]
[WhiteFideId "1116657"]
[BlackFideId "16250877"]
[WhiteElo "2147"]
[BlackElo "2224"]
[Result "1/2-1/2"]
[Round "05"]
[TimeControl "180+2"]
[Date "2023.02.14"]
[WhiteClock "0:01:07"]
[BlackClock "0:01:22"]

1. e4 {[%clk 0:03:00]}  c6 {[%clk 0:03:00]} 2. d4 {[%clk 0:02:56]}  d5 {[%clk 0:03:00]} 3. Nc3 {[%clk 0:02:56]}  dxe4 {[%clk 0:03:00]} 4. Nxe4 {[%clk 0:02:57]}  Nf6 {[%clk 0:03:00]} 5. Nxf6+ {[%clk 0:02:56]}  exf6 {[%clk 0:03:01]} 6. c3 {[%clk 0:02:55]}  Bd6 {[%clk 0:03:01]} 7. Bd3 {[%clk 0:02:55]}  O-O {[%clk 0:03:01]} 8. Ne2 {[%clk 0:02:56]}  Re8 {[%clk 0:03:01]} 9. O-O {[%clk 0:02:55]}  Nd7 {[%clk 0:03:00]} 10. Bf4 {[%clk 0:02:35]}  Nf8 {[%clk 0:02:59]} 11. Bxd6 {[%clk 0:02:32]}  Qxd6 {[%clk 0:03:00]} 12. Ng3 {[%clk 0:02:30]}  g6 {[%clk 0:02:54]} 13. Ne4 {[%clk 0:02:25]}  Qd8 {[%clk 0:02:46]} 14. Qd2 {[%clk 0:02:20]}  f5 {[%clk 0:02:40]} 15. Ng5 {[%clk 0:02:19]}  Bd7 {[%clk 0:02:23]} 16. Rfe1 {[%clk 0:02:17]}  Qf6 {[%clk 0:02:19]} 17. Bc4 {[%clk 0:02:14]}  Ne6 {[%clk 0:02:08]} 18. Nxe6 {[%clk 0:02:13]}  Bxe6 {[%clk 0:02:04]} 19. Bxe6 {[%clk 0:02:12]}  Rxe6 {[%clk 0:02:01]} 20. Rxe6 {[%clk 0:02:10]}  Qxe6 {[%clk 0:02:00]} 21. b3 {[%clk 0:02:07]}  Re8 {[%clk 0:01:53]} 22. Kf1 {[%clk 0:02:03]}  Qd6 {[%clk 0:01:49]} 23. Qh6 {[%clk 0:01:15]}  Qe6 {[%clk 0:01:32]} 24. Qd2 {[%clk 0:01:11]}  Qd6 {[%clk 0:01:31]} 25. Qh6 {[%clk 0:01:10]}  Qa3 {[%clk 0:01:23]} 26. Qd2 {[%clk 0:01:07]}  Qd6 {[%clk 0:01:22]} 1/2-1/2


[Site "https://www.chess.com"]

[Event "Titled Tuesday Blitz February 14 Late 2023"]
[White "Bas Mas, Jose Joaquin"]
[Black "Vaglio Munoz, Jaime"]
[WhiteFideId "22219064"]
[BlackFideId "6500145"]
[WhiteElo "2197"]
[BlackElo "2174"]
[Result "1-0"]
[Round "05"]
[TimeControl "180+2"]
[Date "2023.02.14"]
[WhiteClock "0:00:26"]
[BlackClock "0:00:19"]

1. e4 {[%clk 0:03:00]}  e6 {[%clk 0:02:58]} 2. d4 {[%clk 0:03:00]}  d5 {[%clk 0:02:58]} 3. Nd2 {[%clk 0:03:01]}  dxe4 {[%clk 0:02:58]} 4. Nxe4 {[%clk 0:03:01]}  Nf6 {[%clk 0:02:59]} 5. Bg5 {[%clk 0:02:58]}  Be7 {[%clk 0:02:58]} 6. Bxf6 {[%clk 0:02:57]}  gxf6 {[%clk 0:02:56]} 7. Nf3 {[%clk 0:02:55]}  Rg8 {[%clk 0:02:56]} 8. a3 {[%clk 0:02:53]}  f5 {[%clk 0:02:51]} 9. Nc3 {[%clk 0:02:52]}  Bf6 {[%clk 0:02:50]} 10. Qd2 {[%clk 0:02:52]}  Nc6 {[%clk 0:02:42]} 11. O-O-O {[%clk 0:02:51]}  Bd7 {[%clk 0:02:21]} 12. Kb1 {[%clk 0:02:46]}  Qe7 {[%clk 0:02:19]} 13. d5 {[%clk 0:02:46]}  Ne5 {[%clk 0:02:17]} 14. Nd4 {[%clk 0:02:27]}  a6 {[%clk 0:02:11]} 15. f4 {[%clk 0:02:25]}  Ng6 {[%clk 0:02:06]} 16. g3 {[%clk 0:02:24]}  O-O-O {[%clk 0:02:02]} 17. Bg2 {[%clk 0:02:24]}  h5 {[%clk 0:01:53]} 18. Rhe1 {[%clk 0:02:20]}  Qc5 {[%clk 0:01:46]} 19. Nb3 {[%clk 0:02:12]}  Qb6 {[%clk 0:01:42]} 20. Re3 {[%clk 0:01:31]}  h4 {[%clk 0:01:40]} 21. Rd3 {[%clk 0:01:30]}  hxg3 {[%clk 0:01:39]} 22. hxg3 {[%clk 0:01:31]}  Ne7 {[%clk 0:01:36]} 23. d6 {[%clk 0:01:30]}  Nc6 {[%clk 0:01:32]} 24. Na4 {[%clk 0:01:24]}  Qb5 {[%clk 0:01:20]} 25. dxc7 {[%clk 0:00:59]}  Kxc7 {[%clk 0:01:21]} 26. Nbc5 {[%clk 0:01:00]}  Bc8 {[%clk 0:01:17]} 27. Qe3 {[%clk 0:00:53]}  Rxd3 {[%clk 0:01:09]} 28. Rxd3 {[%clk 0:00:54]}  Rd8 {[%clk 0:01:06]} 29. Rb3 {[%clk 0:00:55]}  Qc4 {[%clk 0:01:02]} 30. Nxb7 {[%clk 0:00:49]}  Rd1+ {[%clk 0:01:01]} 31. Ka2 {[%clk 0:00:49]}  Bxb7 {[%clk 0:01:00]} 32. Qb6+ {[%clk 0:00:49]}  Kd7 {[%clk 0:00:51]} 33. Qxb7+ {[%clk 0:00:49]}  Kd8 {[%clk 0:00:50]} 34. Bxc6 {[%clk 0:00:46]}  Bxb2 {[%clk 0:00:24]} 35. Nxb2 {[%clk 0:00:41]}  Qxc2 {[%clk 0:00:23]} 36. Qb8+ {[%clk 0:00:36]}  Ke7 {[%clk 0:00:23]} 37. Rb7+ {[%clk 0:00:35]}  Kf6 {[%clk 0:00:22]} 38. Qh8+ {[%clk 0:00:29]}  Kg6 {[%clk 0:00:19]} 39. Qg8+ {[%clk 0:00:29]}  Kf6 {[%clk 0:00:19]} 40. Qg5# {[%clk 0:00:26]} 1-0


[Site "https://www.chess.com"]